fUST/lending_fUST_20260429
["ID","MTS","AMOUNT","RATE_DAILY","PERIOD"]
[421328507,1777443039969,-242.35,0.00018354,2]
[421328508,1777443039979,-178.0,0.00018391,2]
[421328510,1777443039989,-220.79093903,0.00018433,2]
[421328511,1777443040000,-500.0,0.00018433,2]
[421328512,1777443040010,-500.0,0.00018433,2]
[421328513,1777443040021,-500.0,0.00018433,2]
[421328514,1777443040032,-500.0,0.00018433,2]
[421328516,1777443040042,-403.76430552,0.00018433,2]
[421328517,1777443040052,-635.46049703,0.00018433,2]
[421328518,1777443040063,-500.0,0.00018433,2]
[421328519,1777443040073,-500.0,0.00018433,2]
[421328520,1777443040083,-151.0,0.00018434,2]
[421328521,1777443040093,-151.0,0.00018434,2]
[421328522,1777443040103,-298.181139,0.00018434,2]
[421328523,1777443040113,-1104.388414,0.00018434,2]
[421328524,1777443040123,-1104.388414,0.00018434,2]
[421328525,1777443040132,-1104.388414,0.00018434,2]
[421328526,1777443040142,-1104.388414,0.00018434,2]
[421328528,1777443040152,-231.164416,0.00018434,2]
[421328529,1777443040162,-231.164416,0.00018434,2]
[421328531,1777443040172,-231.164416,0.00018434,2]
[421328532,1777443040182,-231.164416,0.00018434,2]
[421328533,1777443040191,-151.0,0.00018434,2]
[421328534,1777443040202,-234.056952,0.00018434,2]
[421328535,1777443040212,-234.056952,0.00018434,2]
[421328536,1777443040222,-234.056952,0.00018434,2]
[421328537,1777443040232,-234.056952,0.00018434,2]
[421328538,1777443040242,-151.0,0.00018434,2]
[421328539,1777443040252,-151.0,0.00018434,2]
[421328540,1777443040262,-151.0,0.00018434,2]
[421328541,1777443040272,-522.0,0.00018434,2]
[421328542,1777443040282,-161.27540849,0.00018466,3]
[421328543,1777443040291,-522.0,0.00018471,2]
[421328544,1777443040301,-680.538436,0.00018521,2]
[421328545,1777443040311,-680.538436,0.00018521,2]
[421328546,1777443040320,-680.538436,0.00018521,2]
[421328547,1777443040330,-680.538436,0.00018521,2]
[421328548,1777443040340,-646.0,0.00018521,2]
[421328549,1777443040349,-265.169,0.00018521,2]
[421328550,1777443040359,-185.0,0.00018521,2]
[421328551,1777443040370,-199.668698,0.00018522,2]
[421328552,1777443040379,-178.0,0.00018565,2]
[421328553,1777443040389,-1000.0,0.00018595,2]
[421328554,1777443040399,-268.63673365,0.0001874,3]
[421328555,1777443040410,-61763.89675563,0.000189,2]
[421328556,1777443040420,-3116.603392,0.000189,2]
[421328557,1777443040430,-396.803573,0.000189,2]
[421328558,1777443040441,-3116.603392,0.000189,2]
[421328559,1777443040451,-396.803573,0.000189,2]
[421328560,1777443040461,-3116.603392,0.000189,2]
[421328561,1777443040471,-396.803573,0.000189,2]
[421328562,1777443040482,-3116.603392,0.000189,2]
[421328563,1777443040492,-396.803573,0.000189,2]
[421328564,1777443040503,-157.949039,0.000189,2]
[421328565,1777443040513,-157.949039,0.000189,2]
[421328567,1777443040522,-151.11412,0.000189,2]
[421328568,1777443040532,-157.949039,0.000189,2]
[421328569,1777443040541,-157.949039,0.000189,2]
[421328570,1777443040551,-151.0,0.000189,2]
[421328571,1777443040561,-405.94986,0.000189,2]
[421328572,1777443040570,-405.94986,0.000189,2]
[421328573,1777443040580,-405.94986,0.000189,2]
[421328574,1777443040590,-317.750015,0.000189,2]
[421328575,1777443040600,-405.94986,0.000189,2]
[421328576,1777443040610,-317.750015,0.000189,2]
[421328577,1777443040621,-317.750015,0.000189,2]
[421328578,1777443040630,-317.750015,0.000189,2]
[421328579,1777443040640,-183.32438,0.000189,2]
[421328580,1777443040650,-680.538436,0.000189,2]
[421328581,1777443040659,-680.538436,0.000189,2]
[421328582,1777443040669,-680.538436,0.000189,2]
[421328583,1777443040678,-680.538436,0.000189,2]
[421328584,1777443040687,-161.67783548,0.000189,2]
[421328585,1777443040697,-151.0,0.000189,2]
[421328586,1777443040706,-151.0,0.000189,2]
[421328587,1777443040716,-1104.388414,0.000189,2]
[421328588,1777443040726,-1104.388414,0.000189,2]
[421328589,1777443040736,-1104.388414,0.000189,2]
[421328590,1777443040745,-1104.388414,0.000189,2]
[421328591,1777443040755,-231.164416,0.000189,2]
[421328592,1777443040765,-231.164416,0.000189,2]
[421328593,1777443040774,-231.164416,0.000189,2]
[421328595,1777443040784,-231.164416,0.000189,2]
[421328596,1777443040793,-151.0,0.000189,2]
[421328598,1777443040803,-234.056952,0.000189,2]
[421328600,1777443040812,-234.056952,0.000189,2]
[421328603,1777443040822,-234.056952,0.000189,2]
[421328604,1777443040832,-234.056952,0.000189,2]
[421328607,1777443040841,-151.0,0.000189,2]
[421328608,1777443040851,-151.0,0.000189,2]
[421328609,1777443040860,-151.0,0.000189,2]
[421328610,1777443040869,-151.0,0.000189,2]
[421328611,1777443040879,-151.0,0.000189,2]
[421328612,1777443040888,-208.859499,0.000189,2]
[421328613,1777443040898,-588.824592,0.000189,2]
[421328614,1777443040907,-588.824592,0.000189,2]
[421328615,1777443040919,-588.824592,0.000189,2]
[421328616,1777443040928,-588.824592,0.000189,2]
[421328617,1777443040937,-151.0,0.000189,2]
[421328618,1777443040948,-151.0,0.000189,2]
[421328619,1777443040957,-151.0,0.000189,2]
[421328620,1777443040967,-151.0,0.000189,2]
[421328621,1777443040977,-151.0,0.000189,2]
[421328622,1777443040986,-151.0,0.000189,2]
[421328623,1777443040996,-500.0,0.00018966,2]
[421328624,1777443041006,-500.0,0.00018966,2]
[421328625,1777443041016,-500.0,0.00018966,2]
[421328626,1777443041025,-449.02602927,0.00018967,2]
[421328627,1777443041036,-537.6845,0.00018967,2]
[421328628,1777443041045,-268.53823729,0.00018967,2]
[421328629,1777443041055,-537.6845,0.00018967,2]
[421328630,1777443041066,-2150.738,0.00018967,2]
[421328631,1777443041075,-219.435286,0.00018969,2]
[421328632,1777443041085,-500.0,0.00018998,2]
[421328633,1777443041094,-500.0,0.00018999,2]
[421328634,1777443041105,-500.0,0.00018999,2]
[421328635,1777443041114,-500.0,0.00018999,2]
[421328636,1777443041124,-564.57628751,0.00018999,2]
[421328637,1777443041135,-500.0,0.00018999,2]
[421328638,1777443041144,-500.0,0.00018999,2]
[421328639,1777443041153,-630.44405371,0.00018999,2]
[421328640,1777443041163,-500.0,0.00018999,2]
[421328641,1777443041172,-500.0,0.00018999,2]
[421328642,1777443041182,-500.0,0.00018999,2]
[421328643,1777443041192,-500.0,0.00018999,2]
[421328644,1777443041202,-500.0,0.00018999,2]
[421328645,1777443041212,-500.0,0.00018999,2]
[421328646,1777443041221,-500.0,0.00018999,2]
[421328647,1777443041231,-500.0,0.00018999,2]
[421328648,1777443041240,-500.0,0.00018999,2]
[421328649,1777443041249,-500.0,0.00018999,2]
[421328650,1777443041258,-97745.57453269,0.00019,2]
[421328651,1777443041267,-3116.603392,0.00019,2]
[421328652,1777443041277,-396.803573,0.00019,2]
[421328653,1777443041286,-3116.603392,0.00019,2]
[421328654,1777443041296,-396.803573,0.00019,2]
[421328655,1777443041305,-3116.603392,0.00019,2]
[421328656,1777443041315,-396.803573,0.00019,2]
[421328657,1777443041324,-3116.603392,0.00019,2]
[421328658,1777443041334,-396.803573,0.00019,2]
[421328659,1777443041344,-157.949039,0.00019,2]
[421328660,1777443041353,-157.949039,0.00019,2]
[421328661,1777443041365,-157.949039,0.00019,2]
[421328662,1777443041376,-157.949039,0.00019,2]
[421328663,1777443041386,-405.94986,0.00019,2]
[421328664,1777443041396,-405.94986,0.00019,2]
[421328665,1777443041407,-405.94986,0.00019,2]
[421328666,1777443041419,-317.750015,0.00019,2]
[421328667,1777443041429,-405.94986,0.00019,2]
[421328668,1777443041440,-317.750015,0.00019,2]
[421328669,1777443041450,-317.750015,0.00019,2]
[421328670,1777443041460,-317.750015,0.00019,2]
[421328671,1777443041470,-680.538436,0.00019,2]
[421328672,1777443041480,-680.538436,0.00019,2]
[421328673,1777443041491,-680.538436,0.00019,2]
[421328674,1777443041502,-680.538436,0.00019,2]
[421328675,1777443041513,-151.0,0.00019,2]
[421328676,1777443041523,-151.0,0.00019,2]
[421328677,1777443041533,-1104.388414,0.00019,2]
[421328678,1777443041543,-1104.388414,0.00019,2]
[421328679,1777443041552,-1104.388414,0.00019,2]
[421328680,1777443041563,-1104.388414,0.00019,2]
[421328681,1777443041573,-231.164416,0.00019,2]
[421328682,1777443041583,-231.164416,0.00019,2]
[421328683,1777443041595,-231.164416,0.00019,2]
[421328684,1777443041606,-231.164416,0.00019,2]
[421328685,1777443041617,-151.0,0.00019,2]
[421328686,1777443041628,-234.056952,0.00019,2]
[421328687,1777443041639,-234.056952,0.00019,2]
[421328688,1777443041650,-234.056952,0.00019,2]
[421328689,1777443041659,-234.056952,0.00019,2]
[421328690,1777443041670,-151.0,0.00019,2]
[421328691,1777443041680,-151.0,0.00019,2]
[421328692,1777443041690,-212.15644,0.00019,2]
[421328693,1777443041700,-234.948525,0.00019,2]
[421328694,1777443041710,-151.0,0.00019,2]
[421328695,1777443041720,-588.824592,0.00019,2]
[421328696,1777443041730,-588.824592,0.00019,2]
[421328697,1777443041739,-588.824592,0.00019,2]
[421328698,1777443041748,-588.824592,0.00019,2]
[421328699,1777443041758,-151.0,0.00019,2]
[421328700,1777443041769,-151.0,0.00019,2]
[421328701,1777443041781,-151.0,0.00019,2]
[421328702,1777443041792,-151.0,0.00019,2]
[421328703,1777443041802,-151.0,0.00019,2]
[421328704,1777443041813,-151.0,0.00019,2]
[421328705,1777443041824,-557.5788265,0.00019022,2]
[421328706,1777443041833,-195.77189227,0.00019077,2]
[421328707,1777443041842,-151.0,0.000191,2]
[421328708,1777443041853,-522.0,0.00019172,2]
[421328709,1777443041864,-300.0,0.00019178,2]
[421328710,1777443041876,-522.0,0.0001925,2]
[421328711,1777443041886,-522.0,0.00019333,2]
[421328712,1777443041896,-514.27829909,0.00019515,2]
[421328713,1777443041906,-2230.315306,0.00019515,2]
[421328714,1777443041916,-522.0,0.00019516,2]
[421328715,1777443041926,-522.0,0.00019568,2]
[421328716,1777443041936,-522.0,0.00019605,2]
[421328717,1777443041945,-185.912,0.00019628,2]
[421328718,1777443041954,-500.0,0.00019673,2]
[421328719,1777443041964,-500.0,0.00019673,2]
[421328720,1777443041973,-511.41497578,0.00019675,2]
[421328721,1777443041983,-500.0,0.00019699,2]
[421328722,1777443041993,-500.0,0.00019699,2]
[421328723,1777443042003,-500.0,0.00019699,2]
[421328724,1777443042012,-500.0,0.00019699,2]
[421328725,1777443042022,-500.0,0.00019699,2]
[421328726,1777443042031,-427.6,0.00019699,2]
[421328727,1777443042041,-264.105833,0.000197,2]
[421328728,1777443042054,-264.105833,0.000197,2]
[421328729,1777443042063,-264.105833,0.000197,2]
[421328730,1777443042073,-264.105833,0.000197,2]
[421328731,1777443042083,-151.0,0.000197,2]
[421328732,1777443042092,-151.0,0.000197,2]
[421328733,1777443042101,-171.562634,0.000197,2]
[421328734,1777443042112,-3116.603392,0.000197,2]
[421328735,1777443042122,-171.562634,0.000197,2]
[421328736,1777443042132,-396.803573,0.000197,2]
[421328737,1777443042143,-3116.603392,0.000197,2]
[421328738,1777443042153,-171.562634,0.000197,2]
[421328739,1777443042162,-396.803573,0.000197,2]
[421328740,1777443042172,-3116.603392,0.000197,2]
[421328741,1777443042182,-171.562634,0.000197,2]
[421328742,1777443042192,-396.803573,0.000197,2]
[421328743,1777443042202,-3116.603392,0.000197,2]
[421328744,1777443042213,-396.803573,0.000197,2]
[421328745,1777443042418,-157.949039,0.000197,2]
[421328746,1777443042429,-157.949039,0.000197,2]
[421328747,1777443042439,-157.949039,0.000197,2]
[421328748,1777443042450,-157.949039,0.000197,2]
[421328749,1777443042460,-405.94986,0.000197,2]
[421328750,1777443042471,-405.94986,0.000197,2]
[421328751,1777443042481,-405.94986,0.000197,2]
[421328752,1777443042492,-317.750015,0.000197,2]
[421328753,1777443042502,-405.94986,0.000197,2]
[421328754,1777443042512,-317.750015,0.000197,2]
[421328755,1777443042521,-317.750015,0.000197,2]
[421328756,1777443042531,-317.750015,0.000197,2]
[421328757,1777443042540,-680.538436,0.000197,2]
[421328758,1777443042550,-680.538436,0.000197,2]
[421328759,1777443042560,-680.538436,0.000197,2]
[421328760,1777443042570,-680.538436,0.000197,2]
[421328761,1777443042580,-151.0,0.000197,2]
[421328762,1777443042591,-151.0,0.000197,2]
[421328763,1777443042600,-1104.388414,0.000197,2]
[421328764,1777443042611,-1104.388414,0.000197,2]
[421328765,1777443042621,-1104.388414,0.000197,2]
[421328766,1777443042630,-1104.38842357,0.000197,2]
[421328767,1777443042641,-231.164416,0.000197,2]
[421328768,1777443042651,-231.164416,0.000197,2]
[421328769,1777443042662,-231.164416,0.000197,2]
[421328770,1777443042672,-231.164409,0.000197,2]
[421328771,1777443042681,-151.0,0.000197,2]
[421328772,1777443042691,-234.056952,0.000197,2]
[421328773,1777443042701,-234.056952,0.000197,2]
[421328774,1777443042711,-234.056952,0.000197,2]
[421328775,1777443042722,-234.05695,0.000197,2]
[421328776,1777443042732,-151.0,0.000197,2]
[421328777,1777443042743,-151.0,0.000197,2]
[421328778,1777443042753,-151.0,0.000197,2]
[421328779,1777443042764,-588.824592,0.000197,2]
[421328780,1777443042774,-588.824592,0.000197,2]
[421328781,1777443042784,-588.824592,0.000197,2]
[421328782,1777443042794,-588.824584,0.000197,2]
[421328783,1777443042804,-151.0,0.000197,2]
[421328784,1777443042814,-151.0,0.000197,2]
[421328785,1777443042824,-151.0,0.000197,2]
[421328786,1777443042834,-209.010532,0.000197,2]
[421328787,1777443042843,-151.0,0.000197,2]
[421328788,1777443042853,-151.0,0.000197,2]
[421328789,1777443042863,-522.0,0.00019778,2]
[421328790,1777443042872,-1010.00091735,0.00019794,2]
[421328791,1777443042882,-522.0,0.00019797,2]
[421328792,1777443042892,-5000.0,0.000198,2]
[421328793,1777443042902,-168.35015289,0.00019878,29]
[421328794,1777443042911,-3976.64646228,0.000199,2]
[421328795,1777443042921,-522.0,0.00019961,2]
[421328796,1777443042931,-168.35015289,0.00019962,30]
[421328797,1777443042942,-500.36002584,0.00019973,2]
[421328798,1777443042952,-500.0,0.00019973,2]
[421328799,1777443042961,-500.0,0.00019973,2]
[421328800,1777443042971,-500.0,0.00019973,2]
[421328801,1777443042980,-500.0,0.00019973,2]
[421328802,1777443042990,-500.0,0.00019973,2]
[421328803,1777443042999,-500.0,0.00019973,2]
[421328804,1777443043009,-500.0,0.00019973,2]
[421328805,1777443043019,-500.0,0.00019973,2]
[421328806,1777443043029,-500.0,0.00019973,2]
[421328807,1777443043039,-500.0,0.00019973,2]
[421328808,1777443043049,-500.0,0.00019973,2]
[421328809,1777443043058,-500.0,0.00019973,2]
[421328810,1777443043068,-522.0,0.00019979,2]
[421328811,1777443043077,-405.94986,0.00019987,2]
[421328812,1777443043087,-405.94986,0.00019987,2]
[421328813,1777443043096,-405.94986,0.00019987,2]
[421328814,1777443043317,-317.750015,0.00019987,2]
[421328815,1777443043327,-405.949867,0.00019987,2]
[421328816,1777443043337,-317.750015,0.00019987,2]
[421328817,1777443043347,-317.750015,0.00019987,2]
[421328818,1777443043357,-317.750011,0.00019987,2]
[421328819,1777443043366,-2172.8871002,0.00019993,2]
[421328820,1777443043376,-2000.0,0.00019995,7]
[421328821,1777443043386,-2000.0,0.00019996,7]
[421328822,1777443043396,-2000.0,0.00019996,7]
[421328823,1777443043407,-2000.0,0.00019996,7]
[421328824,1777443043416,-2000.0,0.00019997,7]
[421328825,1777443043426,-2000.0,0.00019997,7]
[421328826,1777443043436,-2000.0,0.00019997,7]
[421328827,1777443043446,-2000.0,0.00019998,7]
[421328828,1777443043456,-2000.0,0.00019998,7]
[421328829,1777443043465,-2000.0,0.00019998,7]
[421328830,1777443043475,-2000.0,0.00019998,7]
[421328831,1777443043486,-2000.0,0.00019999,7]
[421328832,1777443043496,-155.0,0.00019999,2]
[421328833,1777443043505,-2000.0,0.00019999,7]
[421328834,1777443043515,-2000.0,0.00019999,7]
[421328835,1777443043524,-1062.5204973,0.0002,7]
[421328836,1777443043535,-36734.51845516,0.0002,2]
[421328837,1777443044087,-39500.44113579,0.0002,2]
[421328838,1777443044099,-4684.96900967,0.0002,2]
[421328839,1777443044111,-38814.88217482,0.0002,2]
[421328840,1777443044122,-13447.10615054,0.0002,2]
[421328841,1777443044199,-334.5678324,0.00018433,2]
[421328846,1777443046568,-165.4321676,0.00018433,2]
[421328847,1777443046579,-52906.08244785,0.0002,2]
[421328848,1777443046589,-33905.83818595,0.0002,2]
[421328849,1777443046600,-1000.0,0.0002,20]
[421328850,1777443046609,-610.03893932,0.0002,2]
[421328851,1777443046619,-11021.0889964,0.0002,20]
[421328852,1777443046632,-9283.62198951,0.0002,20]
[421328855,1777443047850,-1638.35424257,0.0002,20]
[421328870,1777443048751,-405.18115414,0.0002,20]
[421328887,1777443515790,300.0,9.181e-05,22]
[421328925,1777443877577,2000.0,0.00011,30]
[421328927,1777443898690,1000.0,0.00011,30]
[421328930,1777443905804,-1241.02845452,0.0002,120]
[421328931,1777443905833,-657.47199003,0.0002,120]
[421328932,1777443905861,-1346.83,0.0002,120]
[421328933,1777443905887,-500.0,0.0002,120]
[421328934,1777443905937,-200.0,0.00020135,120]
[421328935,1777443905966,-200.0,0.00020193,120]
[421328936,1777443905994,-200.0,0.00020214,120]
[421328937,1777443906020,-161.0,0.00020242,120]
[421328938,1777443906046,-162.0,0.00020242,120]
[421328939,1777443906071,-256.0,0.00020242,120]
[421328940,1777443906097,-1328.0,0.00020242,120]
[421328941,1777443906123,-523.0,0.00020242,120]
[421328942,1777443906149,-314.0,0.00020242,120]
[421328943,1777443906176,-188.0,0.00020242,120]
[421328944,1777443906204,-174.0,0.00020289,120]
[421328945,1777443906231,-174.0,0.00020289,120]
[421328946,1777443906259,-2143.0,0.00020289,120]
[421328947,1777443906287,-482.0,0.00020289,120]
[421328948,1777443906556,-289.0,0.00020289,120]
[421328949,1777443906587,-174.0,0.00020289,120]
[421328950,1777443906615,-200.0,0.00020308,120]
[421328951,1777443906644,-1072.0,0.0002034,120]
[421328952,1777443906673,-643.0,0.0002034,120]
[421328953,1777443906701,-386.0,0.0002034,120]
[421328954,1777443906728,-232.0,0.0002034,120]
[421328955,1777443906757,-174.0,0.0002034,120]
[421328956,1777443906786,-174.0,0.0002034,120]
[421328957,1777443906815,-200.0,0.00020395,120]
[421328958,1777443906844,-531.0,0.000204,120]
[421328959,1777443906872,-319.0,0.000204,120]
[421328960,1777443906900,-191.0,0.000204,120]
[421328961,1777443906926,-164.0,0.000204,120]
[421328962,1777443906952,-166.0,0.000204,120]
[421328963,1777443906982,-200.0,0.00020626,120]
[421328964,1777443907012,-200.0,0.00020667,120]
[421328965,1777443907044,-200.0,0.00020783,120]
[421328966,1777443907073,-200.0,0.00020876,120]
[421328967,1777443907102,-200.0,0.00020896,120]
[421328968,1777443907131,-200.0,0.00020997,120]
[421328969,1777443907162,-200.0,0.00021023,120]
[421328970,1777443907191,-200.0,0.00021025,120]
[421328971,1777443907223,-200.0,0.00021164,120]
[421328972,1777443907255,-200.0,0.00021226,120]
[421328973,1777443907284,-161.0,0.00021254,120]
[421328974,1777443907312,-256.0,0.00021254,120]
[421328975,1777443907341,-1328.0,0.00021254,120]
[421328976,1777443907371,-523.0,0.00021254,120]
[421328977,1777443907400,-314.0,0.00021254,120]
[421328978,1777443907431,-188.0,0.00021254,120]
[421328979,1777443907462,-200.0,0.00021266,120]
[421328980,1777443907494,-174.0,0.00021304,120]
[421328981,1777443907524,-2143.0,0.00021304,120]
[421328982,1777443907555,-482.0,0.00021304,120]
[421328983,1777443907585,-289.0,0.00021304,120]
[421328984,1777443907614,-174.0,0.00021304,120]
[421328985,1777443907644,-1072.0,0.00021357,120]
[421328986,1777443907673,-643.0,0.00021357,120]
[421328987,1777443907702,-386.0,0.00021357,120]
[421328988,1777443907730,-232.0,0.00021357,120]
[421328989,1777443907761,-174.0,0.00021357,120]
[421328990,1777443907791,-174.0,0.00021357,120]
[421328991,1777443907822,-531.0,0.0002142,120]
[421328992,1777443907851,-319.0,0.0002142,120]
[421328993,1777443907881,-191.0,0.0002142,120]
[421328994,1777443907910,-164.0,0.0002142,120]
[421328995,1777443907940,-166.0,0.0002142,120]
[421328996,1777443907970,-200.0,0.0002147,120]
[421328997,1777443908001,-200.0,0.00021482,120]
[421328998,1777443908033,-200.0,0.00021647,120]
[421328999,1777443908064,-200.0,0.00021742,120]
[421329000,1777443908093,-200.0,0.00021753,120]
[421329001,1777443908124,-200.0,0.00021774,120]
[421329002,1777443908154,-200.0,0.00021843,120]
[421329003,1777443908182,-200.0,0.00021852,120]
[421329004,1777443908217,-200.0,0.00021922,120]
[421329005,1777443908246,-500.0,0.00022,120]
[421329006,1777443908277,-150.0,0.00022,120]
[421329007,1777443908306,-200.0,0.00022,120]
[421329008,1777443908334,-400.0,0.00022,120]
[421329009,1777443908363,-400.0,0.00022,120]
[421329010,1777443908394,-399.0,0.00022,120]
[421329011,1777443908422,-550.0,0.00022,120]
[421329012,1777443908450,-550.0,0.00022,120]
[421329013,1777443908480,-434.0,0.00022,120]
[421329014,1777443908508,-154.0,0.00022,120]
[421329015,1777443908536,-150.0,0.00022,120]
[421329016,1777443908564,-178.0,0.00022,120]
[421329017,1777443908593,-200.0,0.00022011,120]
[421329018,1777443908621,-196.0,0.0002204,120]
[421329019,1777443908650,-226.0,0.0002204,120]
[421329020,1777443908679,-150.0,0.0002204,120]
[421329021,1777443908707,-249.0,0.0002204,120]
[421329022,1777443908734,-200.0,0.0002204,120]
[421329023,1777443908765,-200.0,0.00022122,120]
[421329024,1777443908794,-200.0,0.00022166,120]
[421329025,1777443908823,-250.0,0.00022166,120]
[421329026,1777443908853,-250.0,0.00022166,120]
[421329027,1777443908880,-191.0,0.00022166,120]
[421329028,1777443908910,-150.0,0.00022166,120]
[421329029,1777443908938,-153.0,0.00022166,120]
[421329031,1777443909162,-200.0,0.00022201,120]
[421329032,1777443909193,-300.0,0.00022201,120]
[421329033,1777443909222,-300.0,0.00022201,120]
[421329034,1777443909249,-241.0,0.00022201,120]
[421329035,1777443909278,-200.0,0.00022246,120]
[421329036,1777443909306,-200.0,0.00022264,120]
[421329037,1777443909334,-247.0,0.00022264,120]
[421329038,1777443909362,-200.0,0.00022296,120]
[421329039,1777443909389,-256.0,0.00022317,120]
[421329040,1777443909419,-162.0,0.00022317,120]
[421329041,1777443909447,-150.0,0.00022317,120]
[421329042,1777443909479,-243.0,0.00022317,120]
[421329043,1777443909509,-163.0,0.00022317,120]
[421329044,1777443909537,-174.0,0.00022369,120]
[421329045,1777443909565,-2143.0,0.00022369,120]
[421329046,1777443909594,-482.0,0.00022369,120]
[421329047,1777443909624,-289.0,0.00022369,120]
[421329048,1777443909653,-174.0,0.00022369,120]
[421329049,1777443909680,-200.0,0.00022388,120]
[421329050,1777443909708,-1072.0,0.00022425,120]
[421329051,1777443909735,-643.0,0.00022425,120]
[421329052,1777443909764,-386.0,0.00022425,120]
[421329053,1777443909791,-232.0,0.00022425,120]
[421329054,1777443909818,-174.0,0.00022425,120]
[421329055,1777443909845,-174.0,0.00022425,120]
[421329056,1777443909872,-400.0,0.00022425,120]
[421329057,1777443909899,-400.0,0.00022425,120]
[421329058,1777443909926,-359.0,0.00022425,120]
[421329059,1777443909959,-200.0,0.00022545,120]
[421329060,1777443909988,-200.0,0.00022547,120]
[421329061,1777443910017,-200.0,0.00022547,120]
[421329062,1777443910047,-333.0,0.00022547,120]
[421329063,1777443910075,-600.0,0.00022547,120]
[421329064,1777443910102,-600.0,0.00022547,120]
[421329065,1777443910131,-519.0,0.00022547,120]
[421329066,1777443910160,-200.0,0.00022929,120]
[421329067,1777443910187,-150.0,0.00022929,120]
[421329068,1777443910216,-161.0,0.00022929,120]
[421329069,1777443910244,-200.0,0.00022929,120]
[421329070,1777443910272,-263.0,0.00022929,120]
[421329071,1777443910299,-150.0,0.00022929,120]
[421329072,1777443910326,-283.0,0.00022929,120]
[421329073,1777443910355,-500.0,0.00022929,120]
[421329074,1777443910381,-500.0,0.00022929,120]
[421329075,1777443910410,-461.0,0.00022929,120]
[421329076,1777443910439,-317.04,0.00023013,120]
[421329077,1777443910473,-200.0,0.00023077,120]
[421329183,1777444072671,4700.0,9.501e-05,7]
[421329184,1777444072695,300.0,9.501e-05,7]
[421329185,1777444087480,4700.0,9.501e-05,7]
[421329186,1777444087506,300.0,9.501e-05,7]
[421329187,1777444095286,4700.0,9.501e-05,7]
[421329188,1777444095313,300.0,9.501e-05,7]
[421329189,1777444110411,4700.0,9.501e-05,7]
[421329190,1777444110436,300.0,9.501e-05,7]
[421329208,1777444170449,200.0,0.00021759,120]
[421329209,1777444204614,1371.0,0.000226,120]
[421329210,1777444229786,793.0,0.00022705,120]
[421329253,1777444240840,-300.0,8.052e-05,2]
[421329255,1777444240850,-300.0,8.052e-05,2]
[421329257,1777444240860,-300.0,8.052e-05,2]
[421329258,1777444240870,-300.0,8.052e-05,2]
[421329259,1777444240880,-300.0,8.052e-05,2]
[421329260,1777444240890,-1200.0,8.052e-05,2]
[421329261,1777444240900,-530.29323047,8.052e-05,2]